bitfinex/quotes_SOLUSD_20250822
["timestamp","ask_amount","ask_price","bid_price","bid_amount"]
[1755829638991,4.8804664,183.71,183.7,35.54764793]
[1755829639889,0.06,183.71,183.7,35.54764793]
[1755829643002,0.06,183.71,183.7,35.55243016]
[1755829643400,0.06,183.71,183.7,35.55248436]
[1755829644589,4.8804664,183.71,183.7,8.83248436]
[1755829645483,5.5804664,183.71,183.7,4.01201836]
[1755829646074,5.5804664,183.71,183.66,0.03]
[1755829646075,10.4009328,183.71,183.66,0.03]
[1755829646285,4.8204664,183.67,183.66,0.03]
[1755829646485,4.8204664,183.67,183.66,4.04413514]
[1755829647568,5.5204664,183.67,183.66,8.86460114]
[1755829647784,5.5204664,183.67,183.66,4.04413514]
[1755829648579,4.8204664,183.67,183.66,4.04413514]
[1755829649490,5.5204664,183.67,183.66,4.04413514]
[1755829650013,4.8204664,183.67,183.66,4.04413514]
[1755829652317,4.8204664,183.67,183.66,4.0447403]
[1755829654100,5.5204664,183.67,183.66,4.0447403]
[1755829654416,4.8204664,183.67,183.66,4.0447403]
[1755829654914,5.5204664,183.67,183.66,4.0447403]
[1755829656993,19.40038355,183.67,183.66,0.03]
[1755829657198,62.78038355,183.67,183.66,0.03]
[1755829658905,57.95991715,183.67,183.66,0.03]
[1755829659108,62.78038355,183.67,183.66,0.03]
[1755829660622,57.25991715,183.67,183.66,0.03]
[1755829660915,0.06,183.71,183.66,0.75]
[1755829660916,43.38,183.68,183.66,0.75]
[1755829661097,0.76,183.71,183.66,0.75]
[1755829661300,4.8204664,183.67,183.66,0.75]
[1755829662336,4.8204664,183.67,183.66,4.76023898]
[1755829663124,43.38,183.69,183.66,4.76023898]
[1755829663323,4.8204664,183.67,183.66,0.75]
[1755829663633,4.8204664,183.67,183.66,4.76134427]
[1755829664729,4.8204664,183.67,183.66,0.03]
[1755829664730,5.5204664,183.67,183.66,0.03]
[1755829664928,4.8204664,183.67,183.66,0.75]
[1755829665102,4.8204664,183.67,183.66,4.76247929]
[1755829666929,4.8204664,183.67,183.66,0.75]
[1755829668230,43.38,183.68,183.66,0.75]
[1755829668424,13.65559401,183.71,183.66,0.75]
[1755829668616,4.8204664,183.68,183.66,0.75]
[1755829668820,4.8204664,183.67,183.66,0.7]
[1755829669749,43.38,183.7,183.66,0.7]
[1755829669912,4.8204664,183.67,183.66,0.7]
[1755829670524,43.38,183.7,183.66,0.7]
[1755829670721,4.8204664,183.67,183.66,0.7]
[1755829672315,43.38,183.69,183.66,0.7]
[1755829672529,4.8204664,183.68,183.66,0.7]
[1755829672852,43.38,183.69,183.66,0.03]
[1755829673012,4.8204664,183.68,183.66,0.03]
[1755829673210,132.4,183.7,183.67,0.67]
[1755829673537,4.8204664,183.68,183.67,0.67]
[1755829674113,0.06,183.71,183.67,31.4904664]
[1755829674335,0.06,183.71,183.69,26.0]
[1755829674510,4.8804664,183.71,183.69,26.0]
[1755829674711,4.8804664,183.71,183.7,0.67]
[1755829675008,4.8804664,183.71,183.7,17.039738]
[1755829676126,0.06,183.71,183.7,17.039738]
[1755829676337,4.8804664,183.71,183.7,17.039738]
[1755829676843,0.06,183.71,183.7,17.039738]
[1755829677026,4.8804664,183.71,183.7,17.039738]
[1755829677223,0.06,183.71,183.7,17.039738]
[1755829678147,4.8804664,183.71,183.7,17.039738]
[1755829678933,0.06,183.71,183.7,17.039738]
[1755829679531,0.06,183.71,183.7,16.369738]
[1755829679847,0.06,183.71,183.7,17.039738]
[1755829679848,4.8804664,183.71,183.7,17.039738]
[1755829680243,0.06,183.71,183.7,16.369738]
[1755829680428,0.06,183.71,183.68,0.67]
[1755829680618,4.8804664,183.71,183.69,42.370631]
[1755829680823,0.06,183.71,183.69,16.370631]
[1755829681050,4.8204664,183.7,183.69,16.370631]
[1755829681251,4.8204664,183.7,183.68,26.0]
[1755829681467,5.5404664,183.69,183.67,4.820466]
[1755829681763,5.5404664,183.68,183.66,0.03]
[1755829682055,5.5404664,183.69,183.66,0.03]
[1755829682262,4.8204664,183.67,183.66,0.03]
[1755829683754,0.72,183.69,183.66,0.03]
[1755829683924,4.8204664,183.67,183.66,0.03]
[1755829684554,4.8204664,183.67,183.66,0.7]
[1755829685454,4.8204664,183.67,183.66,0.03]
[1755829686262,4.8204664,183.67,183.66,0.7]
[1755829686953,43.54,183.7,183.66,0.7]
[1755829687151,0.06,183.71,183.66,0.7]
[1755829687457,4.8204664,183.68,183.66,26.03]
[1755829687624,4.8204664,183.68,183.67,0.67]
[1755829688133,4.8204664,183.69,183.67,0.67]
[1755829688336,4.8204664,183.69,183.66,26.03]
[1755829688546,4.8204664,183.69,183.68,0.67]
[1755829689347,4.8204664,183.69,183.67,16.373312]
[1755829689545,4.8204664,183.68,183.67,16.373312]
[1755829689784,0.72,183.7,183.66,26.7]
[1755829690056,4.8204664,183.67,183.66,43.073311]
[1755829690238,4.8204664,183.67,183.66,17.073311]
[1755829691354,4.8204664,183.67,183.66,16.403311]
[1755829695074,4.8204664,183.67,183.66,17.073311]
[1755829696471,0.78,183.71,183.66,17.073311]
[1755829696678,4.8204664,183.67,183.66,17.073311]
[1755829696974,4.8204664,183.67,183.66,0.7]
[1755829697148,4.8204664,183.67,183.66,17.073312]
[1755829699485,44.22,183.71,183.66,17.073312]
[1755829699657,4.8204664,183.67,183.66,16.403312]
[1755829699860,4.8204664,183.67,183.66,0.03]
[1755829700164,4.8204664,183.67,183.66,5.540466]
[1755829701477,0.75,183.71,183.66,5.540466]
[1755829701684,4.8204664,183.67,183.66,5.540466]
[1755829701885,4.8204664,183.67,183.66,0.72]
[1755829702180,4.8204664,183.67,183.66,17.093311]
[1755829702479,4.8204664,183.67,183.66,16.403311]
[1755829702689,4.8204664,183.67,183.66,17.093311]
[1755829705060,0.06,183.71,183.66,17.093311]
[1755829705270,4.8204664,183.67,183.66,17.093311]
[1755829705972,0.75,183.71,183.66,17.093311]
[1755829706178,4.8204664,183.67,183.66,17.093311]
[1755829707274,4.8204664,183.67,183.66,16.403311]
[1755829707476,0.69,183.7,183.66,16.403311]
[1755829707693,4.8204664,183.67,183.66,17.093311]
[1755829710390,0.06,183.71,183.66,17.093311]
[1755829710694,4.8204664,183.67,183.66,16.403311]
[1755829710893,4.8204664,183.67,183.66,0.03]
[1755829711076,4.8204664,183.67,183.66,17.092418]
[1755829712276,0.75,183.71,183.66,17.092418]
[1755829712477,4.8204664,183.67,183.66,16.402418]
[1755829712671,4.8204664,183.67,183.66,0.03]
[1755829713075,4.8204664,183.67,183.66,17.092418]
[1755829716091,0.75,183.71,183.66,17.092418]
[1755829716299,0.06,183.71,183.67,0.69]
[1755829716593,4.8204664,183.69,183.67,0.69]
[1755829716775,0.06,183.71,183.67,0.69]
[1755829716776,4.8204664,183.68,183.67,0.69]
[1755829717396,4.8204664,183.68,183.67,17.060631]
[1755829717567,4.8204664,183.68,183.67,22.505125]
[1755829717885,0.06,183.71,183.67,17.060631]
[1755829718092,4.8204664,183.68,183.67,16.370631]
[1755829718671,4.8204664,183.68,183.67,17.060631]
[1755829718989,0.06,183.71,183.67,17.060631]
[1755829719191,4.8204664,183.68,183.67,16.370631]
[1755829719393,0.06,183.71,183.68,26.0]
[1755829719777,4.8804664,183.71,183.69,0.69]
[1755829719975,4.8804664,183.71,183.68,26.0]
[1755829720183,0.06,183.71,183.7,0.69]
[1755829720393,4.8804664,183.71,183.7,0.69]
[1755829720571,0.06,183.71,183.7,0.69]
[1755829721171,4.8804664,183.71,183.7,0.69]
[1755829721388,4.8804664,183.71,183.7,5.510466]
[1755829721389,0.06,183.71,183.7,5.510466]
[1755829721599,4.8804664,183.71,183.7,5.510466]
[1755829723676,4.8804664,183.71,183.7,4.820466]
[1755829723677,0.06,183.71,183.7,4.820466]
[1755829723882,4.8804664,183.71,183.7,4.820466]
[1755829724198,0.06,183.71,183.7,4.820466]
[1755829724393,4.8804664,183.71,183.7,4.820466]
[1755829724773,5.5704664,183.71,183.7,4.820466]
[1755829725171,4.8804664,183.71,183.7,4.820466]
[1755829725381,5.5704664,183.71,183.7,4.820466]
[1755829726102,0.75,183.71,183.7,4.820466]
[1755829726289,5.5704664,183.71,183.7,4.820466]
[1755829729104,0.06,183.71,183.7,4.820466]
[1755829729283,4.8804664,183.71,183.7,4.820466]
[1755829729607,0.06,183.71,183.7,5.530466]
[1755829729815,4.8804664,183.71,183.7,5.530466]
[1755829729981,4.8804664,183.71,183.7,4.820466]
[1755829730388,0.06,183.71,183.7,4.820466]
[1755829730898,4.8804664,183.71,183.7,4.820466]
[1755829731103,0.06,183.71,183.7,5.530466]
[1755829731509,4.8804664,183.71,183.7,5.530466]
[1755829732198,0.06,183.71,183.7,5.530466]
[1755829732399,4.8804664,183.71,183.7,5.530466]
[1755829732601,0.06,183.71,183.7,5.530466]
[1755829733011,4.8804664,183.71,183.7,5.530466]
[1755829734620,0.06,183.71,183.7,5.530466]
[1755829738725,0.06,183.71,183.7,5.560466]
[1755829738893,4.8804664,183.71,183.7,5.560466]
[1755829739224,0.06,183.71,183.7,4.850466]
[1755829739408,4.8804664,183.71,183.7,4.850466]
[1755829740324,5.5304664,183.71,183.7,4.850466]
[1755829740511,4.8804664,183.71,183.7,0.03]
[1755829741606,5.5304664,183.71,183.7,0.03]
[1755829741812,4.8804664,183.71,183.7,0.03]
[1755829743608,0.06,183.71,183.7,0.03]
[1755829743821,4.8804664,183.71,183.7,0.03]
[1755829744028,4.8804664,183.71,183.7,0.74]
[1755829744029,0.06,183.71,183.7,0.74]
[1755829744321,4.8804664,183.71,183.7,0.74]
[1755829749046,4.8804664,183.71,183.7,16.399738]
[1755829749206,0.06,183.71,183.7,16.399738]
[1755829749407,4.8804664,183.71,183.7,16.399738]
[1755829753038,0.06,183.71,183.7,17.109738]
[1755829753333,5.5304664,183.71,183.7,16.399738]
[1755829753910,4.8804664,183.71,183.7,16.399738]
[1755829756342,4.8804664,183.71,183.7,17.109738]
[1755829756516,4.8804664,183.71,183.7,16.399738]
[1755829757440,0.06,183.71,183.7,17.109738]
[1755829757649,4.8804664,183.71,183.7,16.399738]
[1755829757950,0.06,183.71,183.7,16.399738]
[1755829758119,4.8804664,183.71,183.7,17.109738]
[1755829758956,4.8804664,183.71,183.7,16.399738]
[1755829759315,4.8804664,183.71,183.7,17.109738]
[1755829759928,4.8804664,183.71,183.7,16.399738]
[1755829761416,4.8804664,183.71,183.7,17.109738]
[1755829762423,3.13998129,183.71,183.7,17.109738]
[1755829766548,0.06,183.71,183.7,17.109738]
[1755829767046,3.13998129,183.71,183.7,17.109738]
[1755829768422,3.13998129,183.71,183.7,16.399738]
[1755829768822,3.85998129,183.71,183.7,16.399738]
[1755829769027,59.49990645,183.71,183.68,0.03]
[1755829769358,59.49990645,183.71,183.68,16.402864]
[1755829769359,15.39990645,183.69,183.68,16.402864]
[1755829769536,15.39990645,183.69,183.68,0.03]
[1755829769942,16.11990645,183.69,183.68,0.03]
[1755829772366,10.35048558,183.69,183.68,0.03]
[1755829772776,10.35048558,183.69,183.66,0.03]
[1755829773062,4.81524279,183.67,183.66,16.404205]
[1755829773264,5.53524279,183.67,183.66,16.404205]
[1755829775534,4.81524279,183.65,183.64,0.03]
[1755829776469,5.53524279,183.65,183.64,16.406887]
[1755829776775,48.13524279,183.65,183.64,16.406887]
[1755829776942,48.85524279,183.65,183.64,16.406887]
[1755829778264,48.85524279,183.65,183.64,0.03]
[1755829778635,44.04,183.65,183.64,0.03]
[1755829778940,48.85524279,183.65,183.64,0.03]
[1755829779885,4.81524279,183.65,183.64,0.03]
[1755829780034,48.13524279,183.65,183.64,0.03]
[1755829781057,43.32,183.65,183.64,0.03]
[1755829781464,48.13524279,183.65,183.64,0.03]
[1755829781772,4.81524279,183.65,183.64,0.03]
[1755829781936,43.32,183.66,183.64,0.74]
[1755829782266,5.53524279,183.65,183.64,0.03]
[1755829783759,4.81524279,183.65,183.64,0.03]
[1755829784136,5.53524279,183.65,183.64,0.03]
[1755829784431,48.13524279,183.65,183.64,0.03]
[1755829784849,4.81524279,183.65,183.64,0.03]
[1755829785056,48.13524279,183.65,183.64,0.03]
[1755829786457,48.13524279,183.65,183.64,0.74]
[1755829787569,48.13524279,183.65,183.64,16.407781]
[1755829789654,4.81524279,183.65,183.64,16.407781]
[1755829789968,48.13524279,183.65,183.64,16.407781]
[1755829791870,48.13524279,183.65,183.64,17.077781]
[1755829792247,48.13524279,183.65,183.64,16.407781]
[1755829792587,4.81524279,183.65,183.64,16.407781]
[1755829792789,48.11524279,183.65,183.64,16.407781]
[1755829793146,48.11524279,183.65,183.64,17.077781]
[1755829794668,48.11524279,183.65,183.64,16.407781]
[1755829795578,13.87991715,183.68,183.64,16.407781]
[1755829795866,4.81524279,183.65,183.64,17.077781]
[1755829796073,48.11524279,183.65,183.64,17.077781]
[1755829796367,46.38228973,183.65,183.64,17.077781]
[1755829797075,46.38228973,183.65,183.64,16.407781]
[1755829797249,46.38228973,183.65,183.64,17.077781]
[1755829798062,13.59559401,183.69,183.64,17.077781]
[1755829798348,3.08228973,183.65,183.64,16.407781]
[1755829798972,175.7,183.68,183.64,17.077781]
[1755829799172,175.7,183.68,183.64,16.407781]
[1755829799173,3.08228973,183.65,183.64,16.407781]
[1755829799783,175.7,183.68,183.64,17.077781]
[1755829799965,3.08228973,183.65,183.64,16.407781]
[1755829800474,4.8160924,183.65,183.64,16.407781]
[1755829800686,5.5260924,183.65,183.64,0.03]
[1755829801249,4.8160924,183.65,183.64,0.7]
[1755829801479,43.3,183.65,183.64,0.7]
[1755829801649,4.8160924,183.65,183.64,0.03]
[1755829802053,48.1160924,183.65,183.64,0.03]
[1755829802270,48.1160924,183.65,183.64,0.7]
[1755829803058,4.8160924,183.65,183.64,0.7]
[1755829803777,5.5260924,183.69,183.64,0.7]
[1755829803778,43.3,183.68,183.64,0.7]
[1755829803948,4.8160924,183.65,183.64,0.03]
[1755829804152,43.3,183.68,183.64,0.03]
[1755829804473,4.8160924,183.65,183.64,0.03]
[1755829804901,5.5260924,183.65,183.64,0.03]
[1755829805053,9.6321848,183.64,183.61,0.03]
[1755829805256,9.6321848,183.62,183.6,0.03]
[1755829805453,9.6321848,183.6,183.57,16.407781]
[1755829805654,0.28432314,183.59,183.56,0.2]
[1755829805865,4.8160924,183.57,183.52,16.415832]
[1755829806071,4.8160924,183.53,183.52,16.415832]
[1755829806301,48.1160924,183.53,183.52,0.03]
[1755829806472,43.3,183.53,183.52,0.03]
[1755829806677,48.1160924,183.53,183.52,0.03]
[1755829807297,43.3,183.53,183.52,0.03]
[1755829807602,43.28,183.54,183.52,0.7]
[1755829807768,5.5260924,183.6,183.52,0.7]
[1755829807769,43.28,183.56,183.52,0.03]
[1755829807975,4.8160924,183.53,183.52,0.03]
[1755829808582,48.8060924,183.53,183.52,0.03]
[1755829809286,67.50210195,183.53,183.52,0.03]
[1755829809803,13.87991715,183.52,183.5,0.03]
[1755829810109,52.9321848,183.51,183.5,0.03]
[1755829810608,48.1160924,183.51,183.5,0.03]
[1755829810785,48.1160924,183.51,183.5,0.7]
[1755829811496,0.71,183.55,183.5,0.7]
[1755829811679,13.59559401,183.57,183.5,0.03]
[1755829811879,9.27963864,183.6,183.5,0.03]
[1755829811880,4.8160924,183.51,183.5,0.03]
[1755829812078,14.30559401,183.59,183.5,0.03]
[1755829812079,4.8160924,183.52,183.5,0.03]
[1755829812404,4.8160924,183.51,183.5,0.03]
[1755829812581,44.01,183.54,183.5,0.03]
[1755829812795,4.8160924,183.51,183.5,0.03]
[1755829813286,43.3,183.53,183.5,0.03]
[1755829813608,43.3,183.53,183.5,0.7]
[1755829813779,4.8160924,183.54,183.51,0.67]
[1755829814093,48.1160924,183.54,183.51,0.67]
[1755829814309,43.3,183.54,183.5,26.03]
[1755829814474,4.8160924,183.53,183.5,26.7]
[1755829814678,4.8160924,183.51,183.5,0.03]
[1755829815713,43.3,183.54,183.5,0.03]
[1755829816207,4.8160924,183.51,183.5,0.03]
[1755829816515,43.3,183.52,183.5,0.7]
[1755829816711,43.3,183.52,183.51,0.67]
[1755829817031,5.17354624,183.6,183.51,0.67]
[1755829817182,4.8160924,183.53,183.51,0.67]
[1755829817682,44.01,183.52,183.5,0.03]
[1755829817909,9.6321848,183.51,183.5,0.03]
[1755829818104,137.9260924,183.51,183.5,0.03]
[1755829818400,137.2160924,183.51,183.5,0.03]
[1755829819578,13.59559401,183.5,183.48,0.03]
[1755829819912,0.28432314,183.47,183.39,0.68]
[1755829820082,62.74600955,183.46,183.38,2.18633]
[1755829820283,62.74600955,183.46,183.37,26.68]
[1755829820592,0.28432314,183.45,183.38,2.18633]
[1755829820794,4.8160924,183.39,183.37,0.68]
[1755829820987,4.8160924,183.38,183.35,0.68]
[1755829821193,4.8160924,183.36,183.35,0.68]
[1755829821394,48.1560924,183.36,183.33,0.68]
[1755829821587,4.8160924,183.34,183.33,0.68]
[1755829822007,4.8160924,183.34,183.3,0.68]
[1755829822210,4.8160924,183.31,183.3,17.083751]
[1755829822390,4.8160924,183.31,183.3,16.403751]
[1755829822591,4.8160924,183.31,183.25,0.68]
[1755829822792,4.8160924,183.31,183.26,42.403751]
[1755829822998,4.8160924,183.29,183.27,26.68]
[1755829823209,4.8160924,183.28,183.27,0.68]
[1755829823519,48.1560924,183.29,183.27,0.68]
[1755829823696,4.8160924,183.42,183.28,0.68]
[1755829823697,43.36,183.32,183.28,0.68]
[1755829823894,48.1760924,183.32,183.29,0.68]
[1755829824094,4.8160924,183.31,183.29,0.68]
[1755829824306,4.8160924,183.3,183.27,0.68]
[1755829824617,4.8160924,183.3,183.28,0.68]
[1755829824815,43.44,183.31,183.29,0.68]
[1755829825015,43.44,183.31,183.27,0.68]
[1755829825320,43.44,183.31,183.28,0.68]
[1755829825502,4.8160924,183.3,183.28,0.68]
[1755829825811,4.8160924,183.31,183.29,0.68]
[1755829826132,14.8160924,183.42,183.26,4.8160924]
[1755829826133,132.4,183.46,183.33,26.0]
[1755829826290,10.0,183.49,183.33,26.0]
[1755829826291,0.71,183.45,183.34,14.27559401]
[1755829826621,0.71,183.45,183.34,0.68]
[1755829826622,4.8160924,183.37,183.34,0.68]
[1755829827121,4.8160924,183.38,183.35,0.68]
[1755829827321,4.8160924,183.37,183.35,0.68]
[1755829827629,4.8160924,183.36,183.31,26.0]
[1755829827928,43.44,183.39,183.32,5.4960924]
[1755829828133,43.44,183.39,183.33,5.4960924]
[1755829828337,4.8160924,183.37,183.33,0.68]
[1755829828617,4.8160924,183.37,183.32,21.2171524]
[1755829828814,13.59559401,183.44,183.34,26.68]
[1755829829028,4.8160924,183.39,183.34,31.4960924]
[1755829829204,48.2360924,183.38,183.35,0.68]
[1755829829395,43.42,183.38,183.35,0.68]
[1755829829591,48.2360924,183.38,183.35,0.68]
[1755829830316,48.2360924,183.38,183.32,21.8971524]
[1755829830317,4.8160924,183.37,183.32,21.8971524]
[1755829830508,4.8160924,183.36,183.32,16.40106]
[1755829830822,0.71,183.44,183.34,4.8160924]
[1755829831119,4.8160924,183.41,183.36,4.8160924]
[1755829831312,4.8160924,183.44,183.39,4.8160924]
[1755829831517,43.4,183.43,183.4,0.68]
[1755829832609,43.38,183.43,183.4,0.68]
[1755829832812,19.12168641,183.46,183.41,4.8160924]
[1755829833216,43.38,183.45,183.41,4.8160924]
[1755829833613,43.38,183.44,183.41,4.8160924]
[1755829833814,43.38,183.44,183.4,0.68]
[1755829834131,43.38,183.44,183.42,4.8160924]
[1755829834433,43.38,183.44,183.41,4.8160924]
[1755829834617,4.8160924,183.47,183.42,5.4960924]
[1755829834943,43.36,183.46,183.42,5.4960924]
[1755829835501,43.38,183.46,183.44,4.8160924]
[1755829835826,43.38,183.46,183.44,5.4960924]
[1755829836030,43.38,183.46,183.45,4.8160924]
[1755829836716,4.8160924,183.51,183.45,5.4960924]
[1755829836922,19.12168641,183.52,183.47,4.8160924]
[1755829837103,43.36,183.51,183.48,4.8160924]
[1755829837301,39.36,183.53,183.49,4.8160924]
[1755829837522,43.36,183.52,183.48,5.4960924]
[1755829837727,43.36,183.52,183.49,4.8160924]
[1755829838006,43.36,183.51,183.49,4.8160924]
[1755829838314,43.36,183.52,183.5,4.8160924]
[1755829838522,43.36,183.52,183.46,26.0]
[1755829838523,43.36,183.52,183.51,5.4960924]
[1755829838851,0.06,183.53,183.51,5.4960924]
[1755829839009,0.06,183.53,183.52,4.8160924]
[1755829839206,0.06,183.53,183.52,5.4960924]
[1755829840332,0.06,183.53,183.52,8.53523335]
[1755829841722,0.06,183.53,183.52,0.68]
[1755829843833,0.06,183.53,183.52,17.065831]
[1755829844037,0.06,183.53,183.52,0.68]
[1755829844227,0.06,183.53,183.52,17.065832]
[1755829846956,0.06,183.53,183.52,24.92106535]
[1755829847131,0.06,183.53,183.52,17.065832]
[1755829848217,0.06,183.53,183.52,24.92106535]
[1755829848641,0.06,183.53,183.52,17.065832]
[1755829849731,0.06,183.53,183.52,16.385832]
[1755829849928,0.06,183.53,183.51,7.85523335]
[1755829850135,0.06,183.53,183.52,16.385832]
[1755829850332,21.51082736,183.53,183.44,0.71]
[1755829850631,51.17523335,183.52,183.47,7.85523335]
[1755829850834,51.17523335,183.52,183.46,16.390308]
[1755829851142,7.85523335,183.51,183.46,16.390308]
[1755829851351,8.53523335,183.51,183.47,7.85523335]
[1755829851517,7.85523335,183.51,183.46,0.71]
[1755829851718,7.85523335,183.49,183.45,16.390308]
[1755829851951,51.85523335,183.49,183.44,7.85523335]
[1755829852154,51.85523335,183.49,183.44,24.95733235]
[1755829852659,51.85523335,183.49,183.44,8.56523335]
[1755829852832,51.17523335,183.49,183.44,8.56523335]
[1755829853241,0.68,183.48,183.44,7.85523335]
[1755829853445,0.68,183.48,183.43,16.392099]
[1755829853634,43.32,183.49,183.45,7.85523335]
[1755829853962,51.17523335,183.49,183.44,7.85523335]
[1755829854268,0.68,183.48,183.44,0.71]
[1755829854561,8.53523335,183.48,183.43,24.24733235]
[1755829854733,8.53523335,183.48,183.43,24.95733235]
[1755829854734,7.85523335,183.47,183.43,24.95733235]
[1755829854940,7.85523335,183.47,183.43,16.392099]
[1755829855136,7.85523335,183.46,183.43,17.102099]
[1755829855473,7.85523335,183.46,183.45,0.03]
[1755829856631,7.85523335,183.47,183.45,0.03]
[1755829856833,7.85523335,183.46,183.45,0.03]
[1755829857060,8.53523335,183.46,183.45,0.03]
[1755829858455,51.85523335,183.46,183.45,0.03]
[1755829858966,132.4,183.47,183.45,0.03]
[1755829859273,43.32,183.48,183.45,0.74]
[1755829859442,51.85523335,183.48,183.45,0.03]
[1755829859641,7.85523335,183.46,183.45,0.03]
[1755829860360,5.50587123,183.46,183.45,0.03]
[1755829861161,0.68,183.46,183.45,0.03]
[1755829861344,5.50587123,183.46,183.45,0.03]
[1755829861954,0.68,183.46,183.45,0.03]
[1755829862253,5.50587123,183.46,183.45,0.03]
[1755829863052,19.38578838,183.46,183.45,0.03]
[1755829864149,0.28432314,183.45,183.41,0.03]
[1755829864335,43.32,183.45,183.42,0.71]
[1755829864762,43.32,183.45,183.43,0.71]
[1755829865139,43.32,183.45,183.41,0.74]
[1755829865345,48.14587123,183.45,183.41,0.74]
[1755829865540,0.68,183.45,183.41,0.03]
[1755829865745,4.82587123,183.43,183.41,0.03]
[1755829865970,48.14587123,183.44,183.41,0.03]
[1755829866383,4.82587123,183.43,183.41,0.03]
[1755829866672,48.14587123,183.44,183.41,0.03]
[1755829866895,4.82587123,183.43,183.41,0.03]
[1755829867654,5.50587123,183.42,183.41,0.03]
[1755829867889,4.82587123,183.42,183.41,0.03]
[1755829868454,5.50587123,183.42,183.41,0.03]
[1755829869204,44.0,183.44,183.41,0.03]
[1755829869375,4.82587123,183.44,183.41,0.74]
[1755829869567,43.32,183.43,183.41,0.03]
[1755829869772,4.82587123,183.42,183.41,0.03]
[1755829870100,5.50587123,183.42,183.41,0.03]
[1755829870298,4.82587123,183.42,183.41,0.74]
[1755829870503,4.82587123,183.43,183.41,0.74]
[1755829870673,13.59559401,183.46,183.41,0.74]
[1755829870674,4.82587123,183.42,183.41,0.74]
[1755829870872,43.32,183.43,183.42,0.71]
[1755829871184,43.32,183.45,183.43,0.71]
[1755829871495,4.82587123,183.45,183.44,0.71]
[1755829871702,5.50587123,183.45,183.41,0.03]
[1755829871865,4.82587123,183.42,183.41,0.03]
[1755829874396,0.68,183.44,183.41,0.03]
[1755829874604,4.82587123,183.42,183.41,0.03]
[1755829875175,0.68,183.44,183.41,0.03]
[1755829875565,4.82587123,183.44,183.41,0.03]
[1755829875772,4.82587123,183.44,183.42,0.71]
[1755829875973,4.82587123,183.43,183.42,0.71]
[1755829876559,4.82587123,183.43,183.41,0.03]
[1755829876763,4.82587123,183.42,183.41,0.74]
[1755829877188,4.82587123,183.42,183.41,0.03]
[1755829879188,23.93733647,183.42,183.41,0.03]
[1755829879494,24.22165961,183.42,183.41,0.03]
[1755829880267,19.39578838,183.42,183.41,0.03]
[1755829880808,5.51587123,183.42,183.41,0.03]
[1755829880968,48.83587123,183.42,183.41,0.03]
[1755829881164,53.66174246,183.42,183.41,0.03]
[1755829881574,62.71578838,183.42,183.41,0.03]
[1755829881810,67.54165961,183.42,183.41,0.03]
[1755829882520,48.83587123,183.42,183.41,0.03]
[1755829882894,43.32,183.42,183.41,0.03]
[1755829883097,48.14587123,183.42,183.41,0.69]
[1755829883291,48.14587123,183.42,183.41,0.03]
[1755829884223,48.83587123,183.42,183.41,0.03]
[1755829884681,53.66174246,183.42,183.41,0.03]
[1755829885060,44.01,183.42,183.41,0.03]
[1755829885321,48.83587123,183.42,183.41,0.03]
[1755829885793,48.14587123,183.42,183.41,0.03]
[1755829887120,67.54165961,183.42,183.41,0.03]
[1755829888302,0.28432314,183.41,183.37,0.03]
[1755829888508,4.82587123,183.38,183.37,0.03]
[1755829888843,43.32,183.38,183.37,0.03]